Cogmind - Beta 13 @@@ ROGUE MODE // 2024.04.29 @ 22:21:18 Player: Millea Result: Destroyed by D-53 Grenadier with Mini Grenade Launcher Performance ------------- Evolutions (1) 500 Regions Visited (4) 800 Robots Destroyed (26) 130 Value Destroyed (844) 844 Prototype IDs (10) 200 Alien Tech Used (0) 0 Bonus (0) 0 TOTAL SCORE: 2474 Bonus ------- None Cogmind --------- Core Integrity 0/400 Matter 227/300 Energy 97/100 System Corruption 2% Temperature Cool (0) Movement Core (250) Ox4 Location -9/Mines Parts ------- > --- POWER (1) -------- (None) > --- PROPULSION (2) --- (None) > --- UTILITY (4) ------ Small Storage Unit ECM Suite > --- WEAPON (2) ------- Improved Medium Laser Heavy Assault Rifle > --- INVENTORY (8) ---- Light Treads Wheel Wheel Weight Redist. System Improved Medium Laser Light Assault Rifle Peak State ------------ > --- POWER ------------ Light Nuclear Core > --- PROPULSION ------- Light Treads Improved Treads > --- UTILITY ---------- Heat Sink Small Storage Unit Large Storage Unit ECM Suite > --- WEAPON ----------- Heavy Assault Rifle Improved Assault Rifle > --- INVENTORY -------- Ion Engine Light Treads Improved Treads Wheel Wheel Light Assault Rifle Improved Assault Rifle Grenade Launcher [Rating: 16] Favorites ----------- Power Ion Engine Engine Ion Engine Power Core Light Nuclear Core Propulsion Light Treads Treads Light Treads Utility Small Storage Unit Device ECM Suite Storage Small Storage Unit Protection Light Armor Plating Weapon Medium Laser Energy Gun Medium Laser Energy Cannon Advanced Beam Cannon Ballistic Gun Light Assault Rifle Launcher Grenade Launcher Build | -11 -10 -10 -9 -9 ------- Run | Yrd Mat Min Mat Min Slots Evolved 2 | . . . 2 . Power . | . . . . . Propulsion . | . . . . . Utility 2 | . . . 2 . Weapon . | . . . . . Parts Attached 31 | 6 1 . 23 1 Power 3 | 1 . . 2 . Engine 2 | 1 . . 1 . Core 1 | . . . 1 . Reactor . | . . . . . Propulsion 5 | 2 . . 3 . Treads 5 | 2 . . 3 . Leg . | . . . . . Wheel . | . . . . . Hover . | . . . . . Flight . | . . . . . Utility 6 | 1 1 . 4 . Device 2 | . 1 . 1 . Storage 2 | 1 . . 1 . Processor . | . . . . . Hackware . | . . . . . Protection 2 | . . . 2 . Artifact . | . . . . . Weapon 17 | 2 . . 14 1 Energy Gun 5 | 1 . . 4 . Energy Cannon 1 | . . . 1 . Ballistic Gun 8 | 1 . . 6 1 Ballistic Cannon . | . . . . . Launcher 3 | . . . 3 . Special Weapon . | . . . . . Impact Weapon . | . . . . . Slashing Weapon . | . . . . . Piercing Weapon . | . . . . . Special Melee Weapon . | . . . . . Unidentified Prototypes 3 | . . . 3 . Parts Lost 14 | . . . 11 3 Power 2 | . . . 2 . Propulsion 5 | . . . 3 2 Utility 3 | . . . 3 . Weapon 4 | . . . 3 1 Highest Loss Streak 7 | . . . 7 3 To Critical Strikes . | . . . . . Average Slot Usage (%) 85 | . 97 100 84 65 Engine 7 | . 14 14 7 . Core 1 | . . . 2 . Treads 23 | . 28 28 21 21 Device 13 | . 12 14 14 11 Storage 11 | . 14 14 11 11 Protection 2 | . . . 5 . Energy Gun 9 | . 14 14 6 11 Ballistic Gun 13 | . 14 14 14 10 Naked Turns . | . . . . . Heaviest Build 24 | 13 15 15 24 13 Greatest Support 46 | 40 40 40 46 43 Greatest Overweight (x) 2 | 2 . . . . Average Overweight (x) . | . . . . . Largest Inventory Capacity 15 | 8 8 8 15 8 Average Capacity 7 | 7 8 8 8 8 Most Carried 8 | 6 6 7 8 7 Average Carried 6 | 3 6 6 6 6 Final Capacity 8 | 8 8 8 8 8 Final Carried 7 | 6 6 7 6 6 Class Distribution -------------------- 100% | Mutant Dominant Class ---------------- Mutant | -10/Materials Mutant | -10/Mines Mutant | -9/Materials Mutant | -9/Mines Resources | -11 -10 -10 -9 -9 ----------- Run | Yrd Mat Min Mat Min Matter Collected 762 | 192 . 46 501 23 Remotely . | . . . . . Salvage Created 755 | . . 46 709 . Parts 52 | . . 5 47 . Haulers Intercepted . | . . . . . Recyclers Shooed 3 | . . . 3 . Parts Field Recycled . | . . . . . Retrieved Matter . | . . . . . Parts Self-Destructed . | . . . . . Prevented . | . . . . . Kills | -11 -10 -10 -9 -9 ------- Run | Yrd Mat Min Mat Min Combat Hostiles Destroyed 24 | . . 3 21 . Guns 19 | . . 3 16 . AOE 5 | . . . 5 . Classes Destroyed 5 | . . 1 4 . Worker 1 | . . . 1 . Watcher 1 | . . . 1 . Swarmer 3 | . . 3 . . Grunt 17 | . . . 17 . Sentry 4 | . . . 4 . Best Kill Streak 5 | . . 3 5 . Combat Bots Only 5 | . . 3 5 . Max Kills in Single Turn 2 | . . 1 2 . Gunslinging . | . . . . . Exploded 2 | . . . 2 . Melee . | . . . . . Uniques/NPCs Destroyed . | . . . . . Combat | -11 -10 -10 -9 -9 -------- Run | Yrd Mat Min Mat Min Hostile Shots Fired 215 | . . 17 184 14 Missed 51 | . . 4 44 3 Damage Taken 2208 | . . 93 1756 359 Core 415 | . . 12 312 91 Absorbed by Shields . | . . . . . Core Remaining (%) 97 | 100 . 95 . . Volleys Fired 90 | . . 10 76 4 Largest 2 | . . 2 2 2 Hottest 79 | . . 70 73 79 Shots Fired 166 | . . 19 140 7 Gun 155 | . . 19 129 7 Cannon . | . . . . . Launcher 11 | . . . 11 . Special . | . . . . . Kinetic 109 | . . 10 96 3 Thermal 46 | . . 9 33 4 Explosive 11 | . . . 11 . Electromagnetic . | . . . . . Robot Hit Streak 12 | . . 4 12 2 Robot Miss Streak 6 | . . 6 2 3 Penetration Max . | . . . . . Secondary Targets . | . . . . . Shots Hit Robots 118 | . . 8 108 2 Core Hits 53 | . . 3 49 1 Critical Kills . | . . . . . Critical Parts Destroyed . | . . . . . Critical Strikes 1 | . . . 1 . Burn 1 | . . . 1 . Melee Attacks . | . . . . . Impact . | . . . . . Slashing . | . . . . . Piercing . | . . . . . Sneak Attacks . | . . . . . Combat Hostiles . | . . . . . Follow-up Attacks . | . . . . . Damage Inflicted 2376 | . 7 90 2213 66 Guns 1497 | . . 90 1344 63 Cannons . | . . . . . Explosions 865 | . . . 865 . Melee . | . . . . . Ramming 14 | . 7 . 4 3 Kinetic 1083 | . . 53 1017 13 Thermal 414 | . . 37 327 50 Explosive 865 | . . . 865 . Electromagnetic . | . . . . . Impact . | . . . . . Slashing . | . . . . . Piercing . | . . . . . Highest Corruption 2 | . . . 2 2 Average Corruption 2 | . . . 2 2 Corruption Purged . | . . . . . Corruption Blocked . | . . . . . Effects 9 | . . . 6 3 Message Errors 1 | . . . 1 . Matter Fused 4 | . . . 2 2 Data Loss (minor) 2 | . . . 1 1 Alerts 1 | . . . 1 . Weapon Failures 1 | . . . 1 . Overload Shots . | . . . . . Overflow Damage 7 | . . . 7 . Projectiles . | . . . . . Explosions 7 | . . . 7 . Melee . | . . . . . Knockbacks . | . . . . . Impact . | . . . . . Kinetic . | . . . . . Secondary . | . . . . . Self-Inflicted Damage . | . . . . . Shots . | . . . . . Rammed 3 | . 1 . 1 1 Targets Rammed 3 | . 1 . 1 1 Kicked . | . . . . . Crushed . | . . . . . Highest Temperature 409 | . . 92 409 . Average Temperature 61 | . . 50 63 . Received Heat Transfer 978 | . . . 978 . Siege Activations . | . . . . . Robots Corrupted . | . . . . . Combat Hostiles . | . . . . . Parts Fried . | . . . . . Impact Corruptions . | . . . . . Robots Melted . | . . . . . Combat Hostiles . | . . . . . Parts Melted 1 | . . . 1 . Heat Transferred 1258 | . . 111 1036 111 Parts Sabotaged . | . . . . . Parts Stolen . | . . . . . Parts Stripped . | . . . . . Power Chain Reactions . | . . . . . Alert | -11 -10 -10 -9 -9 ------- Run | Yrd Mat Min Mat Min Peak Influence 381 | . 14 75 381 141 Initial 141 | . . 5 29 141 Average 152 | . 12 50 246 140 Maximum Alert Level 1 | . . . 1 . Low Security (%) 69 | 100 100 100 34 100 Level 1 30 | . . . 65 . Level 2 . | . . . . . Level 3 . | . . . . . Level 4 . | . . . . . Level 5 . | . . . . . High Security . | . . . . . Max Security . | . . . . . Squads Dispatched 3 | . . . 3 . Investigation 1 | . . . 1 . Extermination . | . . . . . Reinforcement 2 | . . . 2 . Assault . | . . . . . Garrison . | . . . . . Intercept . | . . . . . Searches Triggered . | . . . . . Construction Impeded . | . . . . . Haulers Reinforced . | . . . . . Active Scanning Responses . | . . . . . Cargo Convoy Interrupts . | . . . . . Stealth | -11 -10 -10 -9 -9 --------- Run | Yrd Mat Min Mat Min Distress Signals 6 | . . . 6 . Communications Jammed . | . . . . . Distress Signals . | . . . . . Times Spotted 49 | . . 4 42 3 Peak Tracking Total 6 | . . 3 6 5 Tactical Retreats 8 | . . 1 7 . Traps | -11 -10 -10 -9 -9 ------- Run | Yrd Mat Min Mat Min Traps Triggered . | . . . . . Indirectly . | . . . . . Trap Hack Attempts . | . . . . . Triggered . | . . . . . Disarmed . | . . . . . Reprogrammed . | . . . . . Reused . | . . . . . Traps Extracted . | . . . . . Installed . | . . . . . Triggered . | . . . . . Machines | -11 -10 -10 -9 -9 ---------- Run | Yrd Mat Min Mat Min Machines Disabled . | . . . . . Max in Single Turn . | . . . . . Machines Repaired . | . . . . . Machines Dismantled . | . . . . . Machines Sabotaged . | . . . . . Overloaded Fab Kills . | . . . . . Hacking | -11 -10 -10 -9 -9 --------- Run | Yrd Mat Min Mat Min Machines Accessed 5 | . 1 . 4 . Terminals 5 | . 1 . 4 . Fabricators . | . . . . . Repair Stations . | . . . . . Recycling Units . | . . . . . Scanalyzers . | . . . . . Garrison Access . | . . . . . Total Hacks 17 | . 2 . 15 . Successful 6 | . 1 . 5 . Failed 10 | . 1 . 9 . Catastrophic 2 | . 1 . 1 . Database Lockouts 1 | . . . 1 . Manual 10 | . 1 . 9 . Terminals 17 | . 2 . 15 . Fabricators . | . . . . . Repair Stations . | . . . . . Recycling Units . | . . . . . Scanalyzers . | . . . . . Garrison Access . | . . . . . Terminal Hacks 5 | . . . 5 . Prototype ID Bank 4 | . . . 4 . Branch Access Points 1 | . . . 1 . Fabricator Hacks . | . . . . . Repair Station Hacks . | . . . . . Recycling Unit Hacks . | . . . . . Scanalyzer . | . . . . . Garrison Access Hacks . | . . . . . Unauthorized Hacks 1 | . 1 . . . Terminals 1 | . 1 . . . Botnet 1 | . 1 . . . Fabricators . | . . . . . Repair Stations . | . . . . . Recycling Units . | . . . . . Scanalyzers . | . . . . . Garrison Access . | . . . . . Data Cores Recovered . | . . . . . Used . | . . . . . Hacking Detections 4 | . 1 . 3 . Full Trace Events 1 | . . . 1 . Feedback Events . | . . . . . Feedback Blocked . | . . . . . Robot Schematics Acquired . | . . . . . Robots Built . | . . . . . Authchips . | . . . . . Time . | . . . . . Total Robot Build Rating . | . . . . . Part Schematics Acquired . | . . . . . Parts Built . | . . . . . Authchips . | . . . . . Time . | . . . . . Total Part Build Rating . | . . . . . Parts Repaired . | . . . . . Time . | . . . . . Parts Recycled . | . . . . . Recycled Matter . | . . . . . Retrieved Matter . | . . . . . Retrieved Components . | . . . . . Parts Scanalyzed . | . . . . . Part Schematics Acquired . | . . . . . Parts Damaged . | . . . . . Bothacking | -11 -10 -10 -9 -9 ------------ Run | Yrd Mat Min Mat Min Used RIF Installer . | . . . . . Robots Hacked . | . . . . . Non-combat . | . . . . . Combat . | . . . . . Robot Hacks Applied . | . . . . . Relay Couplers Released . | . . . . . Fabnet Peak Effective % . | . . . . . Robots Rewired . | . . . . . Allies Hacked . | . . . . . Hacks Repelled . | . . . . . Allies | -11 -10 -10 -9 -9 -------- Run | Yrd Mat Min Mat Min Total Allies . | . . . . . Largest Group . | . . . . . Highest-Rated Group . | . . . . . Highest-Rated Ally . | . . . . . Total Orders . | . . . . . Ally Attacks . | . . . . . Total Damage . | . . . . . Kills . | . . . . . Allies Corrupted . | . . . . . Allies Melted . | . . . . . Intel | -11 -10 -10 -9 -9 ------- Run | Yrd Mat Min Mat Min Robot Analysis Total . | . . . . . Derelict Logs Recovered 2 | . . 1 . 1 Drone Launches . | . . . . . Drone Recoveries . | . . . . . Exploration | -11 -10 -10 -9 -9 ------------- Run | Yrd Mat Min Mat Min Turns Passed 1408 | 81 74 348 660 245 Spaces Moved 666 | 51 45 198 228 144 Core 14 | 14 . . . . Treads 652 | 37 45 198 228 144 Legs . | . . . . . Wheels . | . . . . . Hover . | . . . . . Flight . | . . . . . Fastest Speed 50 | 50 160 160 160 160 Average Speed 157 | 131 160 160 160 160 Slowest Speed 160 | 160 160 160 160 160 Overloaded Moves . | . . . . . Propulsion Burnouts . | . . . . . Robots Hopped . | . . . . . Cave-ins Triggered . | . . . . . Exploration Rate (%) 30 | 3 24 48 33 45 Regions Visited 4 Branch Regions 2 Pre-discovered Areas 1 | . . 1 . . Known Exits Taken 1 | . . . 1 . Unknown Exits Taken 3 | 1 1 1 . . Scrap Searched 1 | . . . . 1 Spaces Dug . | . . . . . Terrain Destroyed 54 | . . . 54 . Melee . | . . . . . Projectile . | . . . . . AOE 54 | . . . 54 . Terrain Rammed . | . . . . . Walls Destroyed . | . . . . . Machines Disabled . | . . . . . Actions | -11 -10 -10 -9 -9 --------- Run | Yrd Mat Min Mat Min Total 855 | 62 46 212 384 151 Wait 41 | . . 4 37 . Move 662 | 50 44 197 227 144 Hop . | . . . . . Pick Up 18 | 6 . 1 10 1 Fast Attach 14 | 6 1 . 7 . Attach 9 | . . . 8 1 Detach . | . . . . . Swap 8 | . . . 8 . Drop 10 | . . . 10 . Fire 90 | . . 10 76 4 Melee . | . . . . . Ram . | . . . . . Kick . | . . . . . Crush 3 | . 1 . 1 1 Escape Stasis . | . . . . . Rewire . | . . . . . Trap . | . . . . . Miscellaneous . | . . . . . Route ------- -11/Scrapyard -10/Materials -10/Mines -9/Materials (discovered 2 exits: *Min / Sto) -9/Mines History --------- Turn | Location | Event 7 | -11/Scrapyard | Discovered new exit (range 15) 82 | -11/Scrapyard | Entered Materials 121 | -10/Materials | Discovered new exit (range 14) 156 | -10/Materials | Entered Mines 244 | -10/Mines | Met a Derelict bent on vengeance 306 | -10/Mines | Build established: Mutant 339 | -10/Mines | Learned location of Zion (-6) 484 | -10/Mines | Discovered new exit (range 6) 504 | -10/Mines | Entered Materials 504 | -9/Materials | Evolved 2 slots: Utility x2 869 | -9/Materials | Central database locked down 911 | -9/Materials | Identified exit to Mines 911 | -9/Materials | Identified exit to Storage 979 | -9/Materials | Core integrity fell below 50% 1037 | -9/Materials | Lost 7 parts (1p2n1u3w) 1164 | -9/Materials | Entered Mines 1172 | -9/Mines | Learned Materials terminal intel 1381 | -9/Mines | Assembled infested the area 1396 | -9/Mines | Core integrity fell below 20% 1409 | -9/Mines | Destroyed by D-53 Grenadier with Mini Grenade Launcher Last Messages --------------- 01381_ Found Weight Redist. System. 01381_ Found 23 Matter. 01382_ Acquired 23 matter. 01384_ Acquired Weight Redist. System. 01392_ C-30 ARC bursts open, deploying its payload. 01392_ D-53 Grenadier unfolds itself. 01395_ Imp. Treads destroyed. 01395_ U-05 Engineer lays Concrete. 01397_ U-05 Engineer destroyed. 01397_ as-75781 destroyed. 01397_ as-76918 destroyed. 01399_ Imp. Assault Rifle destroyed. 01401_ D-53 Grenadier destroyed. 01401_ T-07 Excavator destroyed. 01403_ K-01 Serf collects debris. 01405_ K-01 Serf destroyed. 01406_ R-06 Scavenger collects Lgt. Ion Engine. 01407_ R-06 Scavenger destroyed. 01409_ Lgt. Treads destroyed. Map ----- +----------------------------------------------------+ | ?????????????????????????????????????????????????? | | ?????????????????????????????????????????????????? | | ?????????????????????????????????????????????????? | | ?????????????????????????????????????????????????? | | ?????????????????????????????????????????????????? | | ?????????????????????????????????????????????????? | | ?????????????????????????????????????????????????? | | ?????????????????????????????????????????????????? | | ?????????????????????????????????????????????????? | | ?????????????????????????????????????????????????? | | ?????????????????????????????????????????????????? | | ?????????????????????????????????????????????????? | | ?????????????????????????????????????????????????? | | ?????????????????????????????????????????????????? | | ??????????????????????????????????? ????????????? | | ?????????????????????????????????? ????????????? | | ????????????????????????????????? ?????????????? | | ???????????????????????????????? ?????????????? | | ???????????????????????????????# ??????????????? | | ?????????????????????????###### ""??????????????? | | ??????????????????????#### "???????????????? | | ?????????????????????## ?????????????????? | | ????????????????????## ! #???????????????????? | | ????????????????????# %= ##??????????????????? | | ?? ??????????????## d * ##?????????????????? | | ?# ????????????# * @ #?????????????????? | | # ????????????# ! #?????????????????? | | ????????? a #????????????????? | | ?????????# #???????????????? | | #????????# #??????????????? | | #?????????# #??????????????? | | #????????? " # ##??????????????? | | #?????????? ###### #############?????? | | #???????????? #?????? #?# #?????? | | ##? ?????????#### #???????# #?# """ """ #?????? | | #?? ???????????####????????# ### """ """ #?????? | | #?? ######??????????????#### """ """ #?????? | | #??? ##????????????## ### #?????? | | #??? ##???????????# ## """ """ #?????? | | #???? ##??????????# ## """ """ #?????? | | ##????# ###?######?## ### """ """ #?????? | | #????## ## ^ ???## ##?# #?????? | | ??#### # ##^# ????# ##??###########?????? | | ?## #^ # ##?## #???????????????????? | | ## # # ### ##???????????????????? | | # #### # ^ #????????????????????? | | ##??## ^ #????????????????????? | | #???## ##???????????????????? | | #??## #???????????????????? | | ##?## ## #???????????????????? | +----------------------------------------------------+ Best States ------------- Heat Dissipation 38 Energy Generation 14 Energy Capacity 250 Matter Stores 265 Matter Capacity 300 Sight Range 16 Terrain Scan Density 10 ECM Strength 1 Armor Coverage 300 Evasion (%) 50 Recoil Reduction 2 Item Schematics ----------------- None Robot Schematics ------------------ None Fabricated ------------ Nothing Alien Tech Used ----------------- None Achievements -------------- None Challenges ------------ None Game ------ Seed AutogunRestorationAirjet Manual? 0 Play Time 00:09:05 Cumulative 295.4 hours Start 2024.04.29 @ 22:12:11 End 2024.04.29 @ 22:21:18 Sessions 1 Manual Loads 0 Difficulty Rogue Special Mode None Game No. 219 Rogue 219 Adventurer 0 Explorer 0 Win Type - Total 11 Types 7/0/3/1/0/0/0/0/0 Lore% 78 Gallery% 85 Achievement% 71 Wizard Run 0 Options --------- Layout 2 ASCII 1 Keyboard 0 Movement Mouse Keybinds 0 Fullscreen 2 Font 24/Smallcaps Map View 50x44 Zoom Use 0% Tactical HUD 1 Map Filters NONE Filters NONE Steam 1 RUN: cc8d51d8-e39a-4818-9042-0ca6ab381b95